lending/lending_fUSD_20240112
["ID","MTS","AMOUNT","RATE_DAILY","PERIOD"]
[311324731,1705062691867,-500.0,0.00023417,2]
[311324732,1705062691877,-530.89336052,0.00023417,2]
[311324733,1705062691888,-500.0,0.00023417,2]
[311324734,1705062691898,-500.0,0.00023417,2]
[311324735,1705062691908,-500.0,0.00023417,2]
[311324736,1705062691918,-500.0,0.00023417,2]
[311324737,1705062691928,-509.43662369,0.00023417,2]
[311324738,1705062691938,-300.0,0.00023417,2]
[311324739,1705062691948,-500.0,0.00023417,2]
[311324740,1705062691958,-500.0,0.00023417,2]
[311324741,1705062691968,-500.0,0.00023417,2]
[311324742,1705062691979,-500.0,0.00023417,2]
[311324743,1705062691989,-500.0,0.00023417,2]
[311324744,1705062691999,-500.0,0.00023417,2]
[311324745,1705062692009,-500.0,0.00023417,2]
[311324746,1705062692019,-500.0,0.00023417,2]
[311324747,1705062692030,-292.42367145,0.00023417,2]
[311324748,1705062692041,-500.0,0.00023417,2]
[311324749,1705062692051,-411.74215787,0.00023417,2]
[311324750,1705062692064,-500.0,0.00023417,2]
[311324751,1705062692074,-500.0,0.00023417,2]
[311324752,1705062692084,-500.0,0.00023417,2]
[311324753,1705062692094,-500.0,0.00023417,2]
[311324754,1705062692104,-500.0,0.00023417,2]
[311324755,1705062692114,-500.0,0.00023417,2]
[311324756,1705062692124,-500.0,0.00023417,2]
[311324757,1705062692134,-500.0,0.00023417,2]
[311324758,1705062692144,-500.0,0.00023417,2]
[311324759,1705062692155,-500.0,0.00023417,2]
[311324760,1705062692165,-500.0,0.00023417,2]
[311324761,1705062692176,-500.0,0.00023417,2]
[311324762,1705062692187,-500.0,0.00023417,2]
[311324763,1705062692197,-500.0,0.00023417,2]
[311324764,1705062692207,-500.0,0.00023417,2]
[311324765,1705062692217,-500.0,0.00023417,2]
[311324766,1705062692228,-500.0,0.00023417,2]
[311324767,1705062692238,-500.0,0.00023417,2]
[311324768,1705062692248,-500.0,0.00023417,2]
[311324769,1705062692259,-500.0,0.00023417,2]
[311324770,1705062692268,-500.0,0.00023417,2]
[311324771,1705062692278,-500.0,0.00023417,2]
[311324772,1705062692288,-500.0,0.00023417,2]
[311324773,1705062692298,-500.0,0.00023417,2]
[311324774,1705062692310,-500.0,0.00023417,2]
[311324775,1705062692321,-500.0,0.00023417,2]
[311324776,1705062692331,-500.0,0.00023417,2]
[311324777,1705062692341,-500.0,0.00023417,2]
[311324778,1705062692351,-500.0,0.00023417,2]
[311324779,1705062692361,-517.50872712,0.00023417,2]
[311324780,1705062692371,-500.0,0.00023417,2]
[311324781,1705062692380,-500.0,0.00023417,2]
[311324782,1705062692390,-500.0,0.00023417,2]
[311324783,1705062692399,-500.0,0.00023417,2]
[311324784,1705062692409,-500.0,0.00023417,2]
[311324785,1705062692419,-500.0,0.00023417,2]
[311324786,1705062692428,-500.0,0.00023417,2]
[311324787,1705062692438,-500.0,0.00023417,2]
[311324788,1705062692448,-500.0,0.00023417,2]
[311324789,1705062692457,-500.0,0.00023417,2]
[311324790,1705062692467,-500.0,0.00023417,2]
[311324791,1705062692477,-512.76003665,0.00023417,2]
[311324792,1705062692487,-500.0,0.00023417,2]
[311324793,1705062692497,-500.0,0.00023417,2]
[311324794,1705062692506,-500.0,0.00023417,2]
[311324795,1705062692516,-500.0,0.00023417,2]
[311324796,1705062692526,-500.0,0.00023417,2]
[311324797,1705062692536,-500.0,0.00023417,2]
[311324798,1705062692546,-500.0,0.00023417,2]
[311324799,1705062692561,-500.0,0.00023417,2]
[311324800,1705062692570,-500.0,0.00023417,2]
[311324801,1705062692580,-500.0,0.00023417,2]
[311324802,1705062692590,-500.0,0.00023417,2]
[311324803,1705062692600,-500.0,0.00023417,2]
[311324804,1705062692610,-500.0,0.00023417,2]
[311324805,1705062692621,-525.32692249,0.00023417,2]
[311324806,1705062692631,-500.0,0.00023417,2]
[311324807,1705062692640,-500.0,0.00023417,2]
[311324808,1705062692650,-510.27939122,0.00023417,2]
[311324809,1705062692660,-500.0,0.00023417,2]
[311324810,1705062692669,-490.23914597,0.00023417,2]
[311324811,1705062692679,-500.0,0.00023417,2]
[311324812,1705062692689,-500.0,0.00023417,2]
[311324813,1705062692699,-500.0,0.00023417,2]
[311324814,1705062692708,-500.0,0.00023417,2]
[311324815,1705062692718,-500.0,0.00023417,2]
[311324816,1705062692728,-500.0,0.00023417,2]
[311324817,1705062692738,-500.0,0.00023417,2]
[311324818,1705062692747,-520.06661439,0.00023417,2]
[311324819,1705062692757,-500.0,0.00023417,2]
[311324820,1705062692767,-500.0,0.00023417,2]
[311324821,1705062692777,-500.0,0.00023417,2]
[311324822,1705062692787,-500.0,0.00023417,2]
[311324823,1705062692797,-500.0,0.00023417,2]
[311324824,1705062692807,-500.0,0.00023417,2]
[311324825,1705062692818,-500.0,0.00023417,2]
[311324826,1705062692828,-500.0,0.00023417,2]
[311324827,1705062692838,-500.0,0.00023417,2]
[311324828,1705062692848,-500.0,0.00023417,2]
[311324829,1705062692857,-500.0,0.00023417,2]
[311324830,1705062692868,-500.0,0.00023417,2]
[311324831,1705062692878,-161.39,0.00023451,2]
[311324832,1705062692887,-2000.0,0.00023462,2]
[311324833,1705062692896,-200.0,0.00023462,2]
[311324834,1705062692906,-1911.39063554,0.00023462,2]
[311324835,1705062692915,-211.79,0.00023473,2]
[311324836,1705062692925,-51011.0,0.000235,2]
[311324837,1705062692935,-500.0,0.0002352,2]
[311324838,1705062692944,-150.67,0.00023553,2]
[311324839,1705062692953,-168.7,0.00023583,2]
[311324840,1705062692963,-211.79,0.00023587,2]
[311324841,1705062692972,-616.65,0.00023589,2]
[311324842,1705062692982,-500.0,0.00023688,2]
[311324843,1705062692992,-500.0,0.00023688,2]
[311324844,1705062693002,-500.0,0.00023688,2]
[311324845,1705062693012,-500.0,0.00023688,2]
[311324846,1705062693022,-500.0,0.00023688,2]
[311324847,1705062693031,-500.0,0.00023689,2]
[311324848,1705062693041,-500.0,0.00023689,2]
[311324849,1705062693051,-500.0,0.00023689,2]
[311324850,1705062693062,-500.0,0.00023689,2]
[311324851,1705062693072,-500.0,0.00023689,2]
[311324852,1705062693081,-587.1,0.00023689,2]
[311324853,1705062693091,-3337.85,0.00023689,2]
[311324854,1705062693099,-500.0,0.00023689,2]
[311324855,1705062693109,-251.6787177,0.00023689,2]
[311324856,1705062693118,-540.24,0.00023689,2]
[311324857,1705062693127,-500.0,0.00023689,2]
[311324858,1705062693136,-500.0,0.00023689,2]
[311324859,1705062693146,-500.0,0.00023689,2]
[311324860,1705062693155,-500.0,0.00023689,2]
[311324861,1705062693164,-500.0,0.00023689,2]
[311324862,1705062693174,-500.0,0.00023689,2]
[311324863,1705062693184,-500.0,0.00023689,2]
[311324864,1705062693194,-500.0,0.00023689,2]
[311324865,1705062693203,-500.0,0.00023689,2]
[311324866,1705062693212,-500.0,0.00023689,2]
[311324867,1705062693222,-500.0,0.00023689,2]
[311324868,1705062693231,-553.75,0.00023689,2]
[311324869,1705062693241,-500.0,0.00023689,2]
[311324870,1705062693250,-500.0,0.00023689,2]
[311324871,1705062693260,-500.0,0.00023689,2]
[311324872,1705062693270,-500.0,0.00023689,2]
[311324873,1705062693279,-500.0,0.00023689,2]
[311324874,1705062693289,-500.0,0.00023689,2]
[311324875,1705062693299,-500.0,0.00023689,2]
[311324876,1705062693308,-500.0,0.00023689,2]
[311324877,1705062693318,-527.65354324,0.00023689,7]
[311324878,1705062693327,-500.0,0.00023689,2]
[311324879,1705062693336,-500.0,0.00023689,2]
[311324880,1705062693346,-500.0,0.00023689,2]
[311324881,1705062693356,-500.0,0.00023689,2]
[311324882,1705062693365,-500.0,0.00023689,2]
[311324883,1705062693375,-500.0,0.00023689,2]
[311324884,1705062693385,-573.98,0.00023689,2]
[311324885,1705062693395,-500.0,0.00023689,2]
[311324886,1705062693404,-500.0,0.00023689,2]
[311324887,1705062693414,-500.0,0.00023689,2]
[311324888,1705062693423,-500.0,0.00023689,2]
[311324889,1705062693433,-500.0,0.00023689,2]
[311324890,1705062693443,-500.0,0.00023689,2]
[311324891,1705062693453,-500.0,0.00023689,2]
[311324892,1705062693462,-500.0,0.00023689,2]
[311324893,1705062693472,-508.69,0.00023689,2]
[311324894,1705062693481,-503.17,0.00023689,2]
[311324895,1705062693491,-500.0,0.00023689,2]
[311324896,1705062693500,-500.0,0.00023689,2]
[311324897,1705062693510,-500.0,0.00023689,2]
[311324898,1705062693519,-500.0,0.00023689,2]
[311324899,1705062693528,-500.0,0.00023689,2]
[311324900,1705062693538,-500.0,0.00023689,2]
[311324901,1705062693547,-500.0,0.00023689,2]
[311324902,1705062693618,-500.0,0.00023689,2]
[311324903,1705062693628,-150.0,0.00023689,2]
[311324904,1705062693637,-500.0,0.00023689,2]
[311324905,1705062693648,-500.0,0.00023689,2]
[311324906,1705062693657,-500.0,0.00023689,2]
[311324907,1705062693667,-500.0,0.00023689,2]
[311324908,1705062693676,-500.0,0.00023689,2]
[311324909,1705062693685,-500.0,0.00023689,2]
[311324910,1705062693694,-500.0,0.00023689,2]
[311324911,1705062693703,-500.0,0.00023689,2]
[311324912,1705062693713,-500.0,0.00023689,2]
[311324913,1705062693722,-500.0,0.00023689,2]
[311324914,1705062693731,-500.0,0.00023689,2]
[311324915,1705062693740,-500.0,0.00023689,2]
[311324916,1705062693749,-500.0,0.00023689,2]
[311324917,1705062693758,-500.0,0.00023689,2]
[311324918,1705062693767,-500.0,0.00023689,2]
[311324919,1705062693776,-500.0,0.00023689,2]
[311324920,1705062693785,-500.0,0.00023689,2]
[311324921,1705062693794,-500.0,0.00023689,2]
[311324922,1705062693803,-500.0,0.00023689,2]
[311324923,1705062693813,-500.0,0.00023689,2]
[311324924,1705062693822,-500.0,0.00023689,2]
[311324925,1705062693831,-500.0,0.00023689,2]
[311324926,1705062693840,-324.62861068,0.00023689,2]
[311324927,1705062693849,-500.0,0.00023689,2]
[311324928,1705062693858,-500.0,0.00023689,2]
[311324929,1705062693867,-3500.7,0.00023689,2]
[311324930,1705062693876,-500.0,0.00023689,2]
[311324931,1705062693886,-500.0,0.00023689,2]
[311324932,1705062693895,-4178.5,0.00023689,2]
[311324933,1705062693904,-863.52,0.00023689,2]
[311324934,1705062693913,-11553.68,0.00023689,2]
[311324935,1705062693922,-500.0,0.00023689,2]
[311324936,1705062693932,-502.88,0.00023689,2]
[311324937,1705062693941,-500.0,0.00023689,2]
[311324938,1705062693950,-511.96,0.00023689,2]
[311324939,1705062693959,-500.0,0.00023689,2]
[311324940,1705062693968,-500.0,0.00023689,2]
[311324941,1705062693977,-500.0,0.00023689,2]
[311324942,1705062693986,-821.68,0.00023689,2]
[311324943,1705062693995,-535.76,0.00023689,2]
[311324944,1705062694005,-500.0,0.00023689,2]
[311324945,1705062694014,-647.26,0.00023689,2]
[311324946,1705062694024,-500.0,0.00023689,2]
[311324947,1705062694033,-500.0,0.00023689,2]
[311324948,1705062694042,-500.0,0.00023689,2]
[311324949,1705062694051,-500.0,0.00023689,2]
[311324950,1705062694061,-538.93,0.00023689,2]
[311324951,1705062694071,-500.0,0.00023689,2]
[311324952,1705062694080,-505.31,0.00023689,2]
[311324953,1705062694089,-1810.66,0.00023689,2]
[311324954,1705062694099,-500.0,0.00023689,2]
[311324955,1705062694108,-500.0,0.00023689,2]
[311324956,1705062694118,-500.0,0.00023689,2]
[311324957,1705062694127,-569.27,0.00023689,2]
[311324958,1705062694136,-500.0,0.00023689,2]
[311324959,1705062694146,-784.78,0.00023689,2]
[311324960,1705062694155,-500.0,0.00023689,2]
[311324961,1705062694164,-582.86,0.00023689,2]
[311324962,1705062694173,-879.32,0.00023689,2]
[311324963,1705062694183,-500.0,0.00023689,2]
[311324964,1705062694192,-500.0,0.00023689,2]
[311324965,1705062694201,-963.8,0.00023689,2]
[311324966,1705062694211,-500.0,0.00023689,2]
[311324967,1705062694220,-500.0,0.00023689,2]
[311324968,1705062694230,-567.72,0.00023689,2]
[311324969,1705062694239,-780.14,0.00023689,2]
[311324970,1705062694248,-500.0,0.00023689,2]
[311324971,1705062694258,-500.0,0.00023689,2]
[311324972,1705062694267,-500.0,0.00023689,2]
[311324973,1705062694277,-1063.1,0.00023689,2]
[311324974,1705062694287,-500.0,0.00023689,2]
[311324975,1705062694296,-1174.55,0.00023689,2]
[311324976,1705062694306,-500.0,0.00023689,2]
[311324977,1705062694316,-1386.02,0.00023689,2]
[311324978,1705062694325,-500.0,0.00023689,2]
[311324979,1705062694335,-500.0,0.00023689,2]
[311324980,1705062694344,-510.96,0.00023689,2]
[311324981,1705062694353,-517.98,0.00023689,2]
[311324982,1705062694363,-4105.79,0.00023689,2]
[311324983,1705062694372,-510.23028697,0.00023689,2]
[311324984,1705062694381,-773.92,0.00023689,2]
[311324985,1705062694390,-1098.36,0.00023689,2]
[311324986,1705062694400,-639.0,0.00023689,2]
[311324987,1705062694409,-500.0,0.00023689,2]
[311324988,1705062694418,-500.0,0.00023689,2]
[311324989,1705062694428,-500.0,0.00023689,2]
[311324990,1705062694438,-500.0,0.00023689,2]
[311324991,1705062694447,-736.67,0.00023689,2]
[311324992,1705062694457,-563.93,0.00023689,2]
[311324993,1705062694466,-1080.59,0.00023689,2]
[311324994,1705062694475,-1433.41,0.00023689,2]
[311324995,1705062694484,-509.57,0.00023689,2]
[311324996,1705062694493,-4986.36,0.00023689,2]
[311324997,1705062694503,-500.0,0.00023689,2]
[311324998,1705062694512,-655.65,0.00023689,2]
[311324999,1705062694522,-500.0,0.00023689,2]
[311325000,1705062694531,-500.0,0.00023689,2]
[311325001,1705062694540,-500.0,0.00023689,2]
[311325002,1705062694551,-500.0,0.00023689,2]
[311325003,1705062694563,-176.61062924,0.00023689,2]
[311325004,1705062694572,-621.98,0.00023689,2]
[311325005,1705062694582,-581.16,0.00023689,2]
[311325006,1705062694591,-500.0,0.00023689,2]
[311325007,1705062694600,-500.0,0.00023689,2]
[311325008,1705062694609,-500.0,0.00023689,2]
[311325009,1705062694619,-689.32,0.00023689,2]
[311325010,1705062694628,-500.0,0.00023689,2]
[311325011,1705062694637,-799.18,0.00023689,2]
[311325012,1705062694647,-500.0,0.00023689,2]
[311325013,1705062694657,-1002.26,0.00023689,2]
[311325014,1705062694666,-771.38,0.00023689,2]
[311325015,1705062694675,-978.48,0.00023689,2]
[311325016,1705062694685,-500.0,0.00023689,2]
[311325017,1705062694694,-920.87,0.00023689,2]
[311325018,1705062694703,-500.0,0.00023689,2]
[311325019,1705062694713,-4036.81,0.00023689,2]
[311325020,1705062694722,-706.5,0.00023689,2]
[311325021,1705062694731,-1107.43,0.00023689,2]
[311325022,1705062694740,-1459.88,0.00023689,2]
[311325023,1705062694750,-500.0,0.00023689,2]
[311325024,1705062694759,-1528.69,0.00023689,2]
[311325025,1705062694769,-500.0,0.00023689,2]
[311325026,1705062694778,-523.12,0.00023689,2]
[311325027,1705062694788,-500.0,0.00023689,2]
[311325028,1705062694797,-500.0,0.00023689,2]
[311325029,1705062694807,-500.0,0.00023689,2]
[311325030,1705062694817,-936.12,0.00023689,2]
[311325031,1705062694826,-500.0,0.00023689,2]
[311325032,1705062694836,-650.59,0.00023689,2]
[311325033,1705062694846,-500.0,0.00023689,2]
[311325034,1705062694856,-3556.71,0.00023689,2]
[311325035,1705062694865,-500.0,0.00023689,2]
[311325036,1705062694874,-2616.6,0.00023689,2]
[311325037,1705062694884,-500.0,0.00023689,2]
[311325038,1705062694893,-1595.01,0.00023689,2]
[311325039,1705062694903,-1457.01,0.00023689,2]
[311325040,1705062694911,-500.0,0.00023689,2]
[311325041,1705062694921,-500.0,0.00023689,2]
[311325042,1705062694930,-3187.12,0.00023689,2]
[311325043,1705062694939,-500.0,0.00023689,2]
[311325044,1705062694949,-859.29,0.00023689,2]
[311325045,1705062694958,-569.54,0.00023689,2]
[311325046,1705062694968,-918.38,0.00023689,2]
[311325047,1705062694978,-500.0,0.00023689,2]
[311325048,1705062694987,-500.0,0.00023689,2]
[311325049,1705062694996,-574.15,0.00023689,2]
[311325050,1705062695006,-500.0,0.00023689,2]
[311325051,1705062695015,-500.0,0.00023689,2]
[311325052,1705062695025,-3444.35,0.00023689,2]
[311325053,1705062695035,-500.0,0.00023689,2]
[311325054,1705062695044,-500.0,0.00023689,2]
[311325055,1705062695054,-500.0,0.00023689,2]
[311325056,1705062695066,-1170.13,0.00023689,2]
[311325057,1705062695075,-285.97472579,0.00023689,2]
[311325058,1705062695085,-501.88,0.00023689,2]
[311325059,1705062695095,-381.03365476,0.0002369,2]
[311325060,1705062695104,-500.0,0.0002369,2]
[311325061,1705062695114,-500.0,0.0002369,2]
[311325062,1705062695123,-614.57457628,0.0002369,2]
[311325063,1705062695133,-500.0,0.0002369,2]
[311325064,1705062695143,-359.49855526,0.0002369,2]
[311325065,1705062695152,-500.0,0.0002369,2]
[311325066,1705062695162,-500.0,0.0002369,2]
[311325067,1705062695172,-500.0,0.0002369,2]
[311325068,1705062695181,-500.0,0.0002369,2]
[311325069,1705062695191,-500.0,0.0002369,2]
[311325070,1705062695201,-500.0,0.0002369,2]
[311325071,1705062695211,-224.61968241,0.0002369,2]
[311325072,1705062695221,-500.0,0.0002369,2]
[311325073,1705062695230,-500.0,0.0002369,2]
[311325074,1705062695241,-500.0,0.0002369,2]
[311325075,1705062695250,-506.79036977,0.0002369,2]
[311325076,1705062695260,-624.46866709,0.0002369,2]
[311325077,1705062695270,-500.0,0.0002369,2]
[311325078,1705062695279,-500.0,0.0002369,2]
[311325079,1705062695289,-500.0,0.0002369,2]
[311325080,1705062695299,-500.0,0.0002369,2]
[311325081,1705062695309,-500.0,0.0002369,2]
[311325082,1705062695318,-424.05757491,0.0002369,2]
[311325083,1705062695327,-500.0,0.0002369,2]
[311325084,1705062695336,-500.0,0.0002369,2]
[311325085,1705062695345,-500.0,0.0002369,2]
[311325086,1705062695354,-264.12897774,0.0002369,2]
[311325087,1705062695364,-500.0,0.0002369,2]
[311325088,1705062695373,-500.0,0.0002369,2]
[311325089,1705062695382,-500.0,0.0002369,2]
[311325090,1705062695391,-500.0,0.0002369,2]
[311325091,1705062695401,-500.0,0.0002369,2]
[311325092,1705062695410,-500.0,0.0002369,2]
[311325093,1705062695419,-500.0,0.0002369,2]
[311325094,1705062695428,-519.95108395,0.0002369,2]
[311325095,1705062695438,-224.51523264,0.0002369,2]
[311325096,1705062695878,-275.48476736,0.0002369,2]
[311325097,1705062695888,-500.0,0.0002369,2]
[311325098,1705062695898,-301.16376134,0.0002369,2]
[311325099,1705062696125,844.80069332,0.00022317,2]
[311325100,1705062696715,276.95610583,0.00022317,2]
[311325101,1705062697056,11110.09422019,0.00022205,2]
[311325102,1705062697296,1469.06981636,0.00021462,7]
[311325103,1705062697339,5937.60574647,0.00022317,2]
[311325104,1705062698049,620.72688939,0.00021688,2]
[311325105,1705062698501,1000.0,0.00022176,2]
[311325106,1705062699105,418.39942505,0.00021948,2]
[311325107,1705062699162,808.28,0.00021832,2]
[311325108,1705062699418,3185.89838635,0.00021948,2]
[311325109,1705062701795,875.65524604,0.00021724,2]
[311325110,1705062702994,2471.83618827,0.00021461,2]
[311325111,1705062703026,155.0,0.0002,2]
[311325112,1705062705183,158.37,0.00021918,2]
[311325113,1705062705226,158.37,0.00021994,2]
[311325114,1705062705267,158.37,0.0002207,2]
[311325115,1705062705298,158.37,0.00022146,2]
[311325116,1705062705331,158.37,0.00022222,2]
[311325117,1705062705371,158.37,0.00022299,2]
[311325118,1705062705460,158.37,0.00022375,2]
[311325119,1705062705494,158.37,0.00022451,2]
[311325120,1705062707273,245000.0,0.00022493,2]
[311325121,1705062707531,4480.4639,0.00022493,2]
[311325122,1705062708252,500.0,0.00022493,2]
[311325123,1705062711262,3001.53867376,0.00022491,2]
[311325124,1705062727814,22630.2336,0.00022493,2]
[311325125,1705062737496,471.31107766,0.00021913,2]
[311325126,1705062744484,250.0,0.00021729,2]
[311325127,1705062752396,250.0,0.00022493,2]
[311325128,1705062758592,5000.0,0.00022493,2]
[311325129,1705062762844,623.23,0.00021726,2]
[311325130,1705062769730,1000.0,0.00022493,2]
[311325131,1705062796227,-419.05406593,0.00022524,2]
[311325132,1705062796249,-1912.9258164,0.00022525,2]
[311325133,1705062796274,-150.0,0.00022527,2]
[311325134,1705062796297,-158.37,0.00022527,2]
[311325135,1705062796319,-150.0,0.00022571,2]
[311325136,1705062796342,-150.0,0.00022583,2]
[311325137,1705062796364,-2580.55567474,0.00022591,2]
[311325138,1705062796386,-150.0,0.00022591,2]
[311325139,1705062796406,-500.0,0.00022592,2]
[311325140,1705062796427,-500.0,0.00022592,2]
[311325141,1705062796450,-512.69780677,0.00022592,2]
[311325142,1705062796470,-500.0,0.00022592,2]
[311325143,1705062796493,-546.18,0.00022592,2]
[311325144,1705062796513,-500.0,0.00022592,2]
[311325145,1705062796535,-348.98382831,0.00022592,2]
[311325146,1705062796559,-500.0,0.00022592,2]
[311325147,1705062796582,-421.23280785,0.00022592,2]
[311325148,1705062816668,200.0,0.00021743,2]
[311325149,1705062826055,523.36,0.00021796,2]
[311325150,1705062864478,568.67,0.00022592,30]
[311325152,1705062943688,200.0,0.00021796,2]
[311325153,1705062944327,150.0,0.00021728,2]
[311325154,1705062956393,228.37,0.00021728,2]
[311325155,1705062956616,228.37,0.00021842,2]
[311325156,1705062956840,228.37,0.00021956,2]
[311325157,1705062957046,228.37,0.00022071,2]
[311325158,1705062957250,228.37,0.00022185,2]
[311325159,1705062957780,228.37,0.00022299,2]
[311325160,1705062957834,228.37,0.00022414,2]
[311325162,1705063023071,19481.6795,0.00022494,2]
[311325164,1705063044375,390.33,0.00019786,2]
[311325165,1705063044614,390.33,0.0002205,2]
[311325166,1705063082900,404.14,0.00021724,2]
[311325167,1705063092166,23900.0,0.00021704,2]
[311325168,1705063097869,2000.0,0.00021704,2]
[311325169,1705063115830,166.79,0.00021706,2]
[311325171,1705063121015,157.76,0.00021872,2]
[311325172,1705063121708,157.76,0.00022034,2]
[311325173,1705063121913,157.76,0.00022197,2]
[311325174,1705063122146,157.76,0.0002236,2]
[311325175,1705063164139,61879.8488,0.00022493,2]
[311325176,1705063171081,154.22,0.00021922,2]
[311325178,1705063192469,176.09,0.00021868,2]
[311325179,1705063193828,176.09,0.00022416,2]
[311325180,1705063207843,581.68,0.00021705,2]
[311325181,1705063245003,581.31,0.00021796,2]
[311325182,1705063322121,583.71584965,0.000225,2]
[311325184,1705063412090,158.23283784,0.00022492,2]
[311325185,1705063435017,162.87,0.00021796,2]
[311325186,1705063435247,162.87,0.00022014,2]
[311325187,1705063435465,162.87,0.00022232,2]
[311325188,1705063435689,162.87,0.0002245,2]
[311325189,1705063457380,351.29,0.00019814,2]
[311325190,1705063457683,351.29,0.00022078,2]
[311325192,1705063517273,202.07,0.00021729,2]
[311325193,1705063529650,748.41096956,0.00021729,2]
[311325194,1705063529674,3627.79965705,0.00021729,2]
[311325195,1705063529695,19523.78937339,0.00021729,2]
[311325196,1705063530765,3810.12,0.00021918,2]
[311325197,1705063540931,1000.0,0.00021912,2]
[311325198,1705063549860,573.08526084,0.00021729,2]
[311325199,1705063553001,262.36741189,0.00021729,2]
[311325200,1705063554397,2008.75686005,0.00021512,2]
[311325201,1705063555840,2673.40910163,0.00021729,2]
[311325203,1705063558857,4778.53113802,0.00021729,2]
[311325204,1705063559354,3207.3814279,0.00022,2]
[311325205,1705063563171,305.53108644,0.00021729,2]
[311325206,1705063564755,407.42759036,0.00021729,2]
[311325207,1705063565234,360.79817652,0.00021729,2]
[311325208,1705063579792,1746.96888625,0.00022,2]
[311325209,1705063591212,360.5277837,0.00021729,2]
[311325210,1705063599521,155.0,0.00021729,2]
[311325211,1705063615721,173.3,0.0002188,2]
[311325212,1705063615928,173.3,0.00022165,2]
[311325213,1705063616150,173.3,0.0002245,2]
[311325214,1705063617494,157.34193768,0.00021729,2]
[311325215,1705063633084,-278.70636052,0.0002252,2]
[311325216,1705063633104,-1528.33059232,0.00022521,2]
[311325217,1705063633126,-228.37,0.00022528,2]
[311325218,1705063633147,-158.23283784,0.00022561,2]
[311325219,1705063633166,-51.09205713,0.00022579,2]
[311325221,1705063676228,534.95,0.00021769,2]
[311325224,1705063732203,542.9,0.00021778,2]
[311325228,1705063746561,162.16,0.00021991,2]
[311325231,1705063771893,500.0,0.00022591,30]
[311325232,1705063772175,637.34,0.00022865,30]
[311325233,1705063788227,1005.14164467,0.00022408,2]
[311325236,1705063802564,560.8668,0.00022492,2]
[311325237,1705063806207,176.09,0.00021865,2]
[311325238,1705063807507,184.5599508,0.00022413,2]
[311325239,1705063812826,200.0,0.00021782,2]
[311325240,1705063824655,-366.91666991,0.00022579,2]
[311325241,1705063824677,-162.16,0.00022582,2]
[311325242,1705063824700,-724.12,0.00022584,2]
[311325243,1705063824721,-715.15,0.00022587,2]
[311325244,1705063824741,-171.61355998,0.0002259,2]
[311325245,1705063824761,-300.0,0.0002259,2]
[311325246,1705063824782,-178.6390983,0.00022591,2]
[311325247,1705063824803,-500.0,0.00022591,2]
[311325248,1705063824826,-500.0,0.00022591,2]